bitfinex-derivatives/quotes_BTCF0:USTF0_20250713
["timestamp","ask_amount","ask_price","bid_price","bid_amount"]
[1752435990593,0.2700934,119110.0,119100.0,0.86801963]
[1752435990790,0.28739101,119110.0,119100.0,0.86801963]
[1752435994395,0.28739101,119110.0,119100.0,0.5838975]
[1752435994594,0.28739101,119110.0,119100.0,0.86801963]
[1752435997397,0.11953761,119110.0,119100.0,0.86801963]
[1752435997588,0.01729761,119110.0,119100.0,0.86801963]
[1752435998195,0.01729761,119110.0,119100.0,1.16231963]
[1752435999402,0.01729761,119110.0,119100.0,1.20752997]
[1752436000289,0.01729761,119110.0,119100.0,1.16231963]
[1752436001801,0.002,119130.0,119100.0,0.99445213]
[1752436002007,0.1038,119130.0,119120.0,1.18081143]
[1752436002198,0.05118,119130.0,119120.0,1.46493356]
[1752436002598,0.002,119130.0,119120.0,1.46493356]
[1752436004208,0.003,119130.0,119120.0,1.46493356]
[1752436005708,0.2425453,119130.0,119120.0,1.18081143]
[1752436006606,0.2425453,119130.0,119120.0,1.2463833]
[1752436007003,0.2425453,119130.0,119120.0,1.5406833]
[1752436008299,0.07472,119130.0,119120.0,1.5406833]
[1752436009506,0.2425453,119130.0,119120.0,1.5406833]
[1752436010216,0.2425453,119130.0,119120.0,1.5416833]
[1752436010710,0.2415453,119130.0,119120.0,1.5416833]
[1752436010909,0.07372,119130.0,119120.0,1.5416833]
[1752436014007,0.09091522,119130.0,119120.0,1.5416833]
[1752436014410,0.04173522,119130.0,119120.0,1.5414233]
[1752436014612,0.08950522,119130.0,119120.0,1.5415233]
[1752436015514,0.08950522,119130.0,119120.0,1.25740117]
[1752436015703,0.08950522,119130.0,119120.0,1.5415233]
[1752436017915,0.04173522,119130.0,119120.0,1.5414233]
[1752436018112,0.08950522,119130.0,119120.0,1.5415233]
[1752436018812,0.08950522,119130.0,119120.0,1.25740117]
[1752436019013,0.08950522,119130.0,119120.0,1.5415233]
[1752436020112,0.25733052,119130.0,119120.0,1.5415233]
[1752436021216,0.25733052,119130.0,119120.0,1.5425233]
[1752436021416,0.25733052,119130.0,119120.0,1.5435233]
[1752436023418,0.08950522,119130.0,119120.0,1.5435233]
[1752436023720,0.25733052,119130.0,119120.0,1.5435233]
[1752436024318,0.08950522,119130.0,119120.0,1.5435233]
[1752436024518,0.25733052,119130.0,119120.0,1.5435233]
[1752436025217,0.28967052,119130.0,119120.0,1.5435233]
[1752436027425,0.12184522,119130.0,119120.0,1.5435233]
[1752436027620,0.08950522,119130.0,119120.0,1.5435233]
[1752436028925,0.06696522,119130.0,119120.0,1.82764543]
[1752436029126,0.06696522,119130.0,119120.0,1.5435233]
[1752436029323,0.06696522,119130.0,119120.0,1.82764543]
[1752436030626,0.25954052,119130.0,119120.0,1.5435233]
[1752436031027,0.29188052,119130.0,119120.0,1.5435233]
[1752436031328,0.29188052,119130.0,119120.0,1.25231117]
[1752436031519,0.29188052,119130.0,119120.0,1.5364333]
[1752436031720,0.29188052,119130.0,119120.0,1.5434233]
[1752436031920,0.12405522,119130.0,119120.0,1.5435233]
[1752436033524,0.29188052,119130.0,119120.0,1.5435233]
[1752436034931,0.09171522,119130.0,119120.0,1.5435233]
[1752436035131,0.01919522,119130.0,119120.0,1.87285577]
[1752436035318,0.01919522,119130.0,119120.0,1.82764543]
[1752436035519,0.01919522,119130.0,119120.0,1.87285577]
[1752436035928,0.01919522,119130.0,119120.0,1.82764543]
[1752436036729,0.06696522,119130.0,119120.0,1.82764543]
[1752436036931,0.23479052,119130.0,119120.0,1.82764543]
[1752436037126,0.29188052,119130.0,119120.0,1.5435233]
[1752436042444,0.29188052,119130.0,119120.0,1.25940117]
[1752436042642,0.29188052,119130.0,119120.0,2.6991033]
[1752436042841,0.29188052,119130.0,119120.0,2.40799117]
[1752436043038,0.57600265,119130.0,119120.0,1.1867393]
[1752436043242,0.57600265,119130.0,119120.0,2.3423793]
[1752436044445,0.29188052,119130.0,119120.0,2.3423793]
[1752436045846,0.18702052,119130.0,119120.0,2.3423793]
[1752436046643,0.18702052,119130.0,119120.0,1.9815793]
[1752436046845,0.18702052,119130.0,119120.0,2.26570143]
[1752436047148,0.01919522,119130.0,119120.0,2.54982356]
[1752436047745,0.01919522,119130.0,119120.0,2.61664532]
[1752436051447,0.18702042,119130.0,119120.0,2.97744532]
[1752436053146,0.01919522,119130.0,119120.0,2.97744532]
[1752436057455,0.2516891,119160.0,119150.0,0.1677971]
[1752436057641,0.2516891,119160.0,119150.0,1.96811923]
[1752436058453,0.2536891,119160.0,119150.0,1.96811923]
[1752436059048,0.2536891,119160.0,119150.0,1.6839971]
[1752436060452,0.3160019,119160.0,119150.0,1.6839971]
[1752436062855,0.3160019,119160.0,119150.0,1.3231971]
[1752436063055,0.3160019,119160.0,119150.0,1.6839971]
[1752436063354,0.2556891,119160.0,119150.0,1.6839971]
[1752436066658,0.2556891,119160.0,119150.0,1.96811923]
[1752436069261,0.27281971,119160.0,119150.0,1.96811923]
[1752436069860,0.27281971,119160.0,119150.0,1.60731923]
[1752436070059,0.27281971,119160.0,119150.0,1.96811923]
[1752436077460,0.27281971,119160.0,119150.0,1.6839971]
[1752436079373,0.55694184,119160.0,119150.0,1.5162]
[1752436079569,0.55694184,119160.0,119150.0,1.6839971]
[1752436080558,0.27281971,119160.0,119150.0,1.3231971]
[1752436080762,0.55694184,119160.0,119150.0,1.6839971]
[1752436080965,0.27281971,119160.0,119150.0,1.3231971]
[1752436082070,0.55694184,119160.0,119150.0,1.3231971]
[1752436083864,0.55694184,119160.0,119150.0,1.6839971]
[1752436084170,0.27281971,119160.0,119150.0,1.6839971]
[1752436084571,0.27281971,119160.0,119150.0,1.3231971]
[1752436085071,0.27281971,119160.0,119150.0,1.6839971]
[1752436085867,0.27281971,119160.0,119150.0,1.3231971]
[1752436087074,0.27281971,119160.0,119150.0,1.6839971]
[1752436087873,0.27281971,119160.0,119150.0,1.3231971]
[1752436088173,0.27281971,119160.0,119150.0,1.6839971]
[1752436089875,0.27281971,119160.0,119150.0,1.3231971]
[1752436090070,0.27281971,119160.0,119150.0,1.6839971]
[1752436092179,0.27281971,119160.0,119150.0,1.3231971]
[1752436092974,0.48587191,119160.0,119150.0,1.5362493]
[1752436093174,0.69892411,119160.0,119150.0,1.5362493]
[1752436095471,0.48587191,119160.0,119150.0,1.5362493]
[1752436095668,0.48587191,119160.0,119150.0,1.8970493]
[1752436096170,0.54618471,119160.0,119150.0,1.5362493]
[1752436096367,0.54618471,119160.0,119150.0,1.8970493]
[1752436096773,0.48587191,119160.0,119150.0,1.5362493]
[1752436097072,0.54618471,119160.0,119150.0,1.5362493]
[1752436097670,0.54618471,119160.0,119150.0,1.8970493]
[1752436097870,0.54618471,119160.0,119150.0,1.5362493]
[1752436098074,0.54618471,119160.0,119150.0,1.8970493]
[1752436098276,0.54618471,119160.0,119150.0,1.5362493]
[1752436098475,0.54618471,119160.0,119150.0,1.8970493]
[1752436098671,0.48587191,119160.0,119150.0,1.8970493]
[1752436098872,0.27281971,119160.0,119150.0,1.8970493]
[1752436101470,0.27281971,119160.0,119150.0,1.5362493]
[1752436101671,0.27281971,119160.0,119150.0,1.8970493]
[1752436102773,0.27281971,119160.0,119150.0,1.6839971]
[1752436102975,0.27281971,119160.0,119150.0,1.8970493]
[1752436105070,0.48587191,119160.0,119150.0,1.6839971]
[1752436106277,0.48587191,119160.0,119150.0,1.8970493]
[1752436110881,0.27281971,119160.0,119150.0,1.8970493]
[1752436111081,0.48587191,119160.0,119150.0,1.8970493]
[1752436124487,0.69892411,119160.0,119150.0,1.1554]
[1752436124688,0.48587191,119160.0,119150.0,1.5362493]
[1752436125191,0.69892411,119160.0,119150.0,1.5362493]
[1752436125986,0.1677971,119150.0,119140.0,0.8257546]
[1752436126191,0.1677971,119150.0,119140.0,1.9792346]
[1752436126192,0.39797991,119150.0,119140.0,1.9792346]
[1752436126390,0.61103211,119150.0,119140.0,1.15368]
[1752436126590,0.39797991,119150.0,119140.0,1.15368]
[1752436126887,0.40663895,119150.0,119140.0,1.15368]
[1752436127091,0.39797991,119150.0,119140.0,1.3214912]
[1752436127896,0.39897991,119150.0,119140.0,1.3214912]
[1752436128103,0.39997991,119150.0,119140.0,1.3214912]
[1752436128403,0.39997991,119150.0,119140.0,1.6822912]
[1752436129308,0.39997991,119150.0,119140.0,1.3214912]
[1752436130203,0.40859204,119150.0,119140.0,1.3214912]
[1752436130905,0.39997991,119150.0,119140.0,1.3214912]
[1752436133496,0.18692771,119150.0,119140.0,1.5345434]
[1752436133695,0.18692771,119150.0,119140.0,2.1083956]
[1752436134801,0.01913061,119150.0,119140.0,2.3214478]
[1752436136005,0.01813061,119150.0,119140.0,2.3214478]
[1752436136205,0.01813061,119150.0,119140.0,2.3234478]
[1752436136404,0.18592771,119150.0,119140.0,2.1103956]
[1752436136605,0.01813061,119150.0,119140.0,2.1103956]
[1752436136900,0.01813061,119150.0,119140.0,1.96927855]
[1752436136901,0.01713061,119150.0,119140.0,1.96927855]
[1752436137107,0.18492771,119150.0,119140.0,1.96927855]
[1752436140010,0.18492771,119150.0,119140.0,2.26357855]
[1752436140312,0.18492771,119150.0,119140.0,1.9795912]
[1752436140500,0.18492771,119150.0,119140.0,2.26357855]
[1752436140702,0.18492771,119150.0,119140.0,1.9795912]
[1752436141108,0.18492771,119150.0,119140.0,2.26357855]
[1752436144812,0.18647506,119150.0,119140.0,2.26357855]
[1752436145906,0.18647506,119150.0,119140.0,1.96927855]
[1752436146207,0.18647506,119150.0,119140.0,1.6852912]
[1752436146416,0.18647506,119150.0,119140.0,0.003]
[1752436146417,0.47046241,119150.0,119140.0,0.003]
[1752436146714,0.83126241,119150.0,119140.0,0.003]
[1752436147509,0.99912641,119150.0,119140.0,0.003]
[1752436147816,1.00012641,119150.0,119140.0,0.001]
[1752436148711,1.00012641,119150.0,119130.0,0.0002]
[1752436148910,0.4533459,119140.0,119130.0,0.0002]
[1752436149114,0.1678252,119130.0,119120.0,1.76750911]
[1752436149315,0.18495581,119130.0,119120.0,1.76730911]
[1752436150009,0.18650316,119130.0,119120.0,1.76730911]
[1752436151315,0.18650316,119130.0,119120.0,1.76930911]
[1752436151709,0.01867796,119130.0,119120.0,2.05329646]
[1752436151911,0.18650316,119130.0,119120.0,2.33728381]
[1752436152115,0.18650316,119130.0,119120.0,2.05429646]
[1752436154722,0.18650316,119130.0,119120.0,2.12208992]
[1752436165438,0.16937255,119130.0,119120.0,2.12208992]
[1752436165734,0.18639194,119130.0,119120.0,2.12208992]
[1752436166436,0.18639194,119130.0,119120.0,1.83774257]
[1752436166634,0.18639194,119130.0,119120.0,2.12172992]
[1752436167840,0.18639194,119130.0,119120.0,1.79578277]
[1752436168040,0.47037929,119130.0,119120.0,1.68602951]
[1752436168228,0.47038213,119130.0,119120.0,1.51819891]
[1752436168434,0.47038213,119130.0,119120.0,1.68603821]
[1752436170241,0.47038213,119130.0,119120.0,1.51819891]
[1752436170636,0.16937255,119130.0,119120.0,1.51819891]
[1752436170835,0.47038592,119130.0,119120.0,1.51819891]
[1752436171037,0.47038592,119130.0,119120.0,1.68603821]
[1752436172334,0.18639857,119130.0,119120.0,1.68603821]
[1752436172541,0.18639857,119130.0,119120.0,0.53331821]
[1752436178150,0.47038592,119130.0,119120.0,0.53331821]
[1752436180255,0.18639857,119130.0,119120.0,0.53331821]
[1752436180455,0.47038592,119130.0,119120.0,0.53331821]
[1752436181655,0.18639857,119130.0,119120.0,0.53331821]
[1752436182052,0.18639857,119130.0,119120.0,0.81730556]
[1752436182757,0.18639857,119130.0,119120.0,1.96970556]
[1752436185255,0.18639857,119130.0,119120.0,1.80186626]
[1752436185459,0.47038592,119130.0,119120.0,0.36547891]
[1752436187156,0.47038592,119130.0,119120.0,0.00467891]
[1752436187354,0.47038592,119130.0,119120.0,0.36547891]
[1752436187852,0.075391,119160.0,119140.0,0.1678112]
[1752436188054,0.298263,119200.0,119170.0,0.04194]
[1752436188250,0.08395943,119200.0,119190.0,1.0965155]
[1752436188457,0.004,119210.0,119200.0,0.1677267]
[1752436188756,0.150782,119220.0,119200.0,0.1677267]
[1752436188757,0.07082257,119220.0,119210.0,0.1677126]
[1752436188962,0.2000166,119250.0,119240.0,0.1676704]
[1752436189152,0.2000166,119250.0,119240.0,1.61233975]
[1752436189361,0.367673,119250.0,119240.0,1.97313975]
[1752436189554,0.1716564,119250.0,119240.0,1.97313975]
[1752436189758,0.004,119250.0,119240.0,1.97313975]
[1752436190058,0.004,119250.0,119240.0,1.97113975]
[1752436190255,0.004,119250.0,119240.0,1.96269775]
[1752436190450,0.004,119250.0,119240.0,1.6787104]
[1752436190660,0.006,119250.0,119240.0,1.95869775]
[1752436191161,0.006,119250.0,119240.0,2.00704443]
[1752436191659,0.01,119250.0,119240.0,2.00704443]
[1752436192562,0.01,119250.0,119240.0,1.3139104]
[1752436192855,0.01,119250.0,119240.0,1.64624443]
[1752436193061,0.01,119250.0,119240.0,2.00704443]
[1752436195166,0.1776564,119250.0,119240.0,2.00704443]
[1752436195765,0.1776564,119250.0,119240.0,1.6747104]
[1752436196263,0.1776564,119250.0,119240.0,1.3139104]
[1752436196862,0.1776564,119250.0,119240.0,1.14624]
[1752436197065,0.1776564,119250.0,119240.0,1.3139105]
[1752436198863,0.1776564,119250.0,119230.0,0.361]
[1752436198864,0.1676705,119240.0,119230.0,0.361]
[1752436199068,0.2515094,119240.0,119230.0,1.1514]
[1752436199370,0.2515094,119240.0,119230.0,1.3190845]
[1752436199958,0.2525094,119240.0,119230.0,1.3190845]
[1752436201769,0.2105891,119240.0,119230.0,1.3190845]
[1752436202159,0.001,119240.0,119230.0,2.01221853]
[1752436205166,0.1686705,119240.0,119230.0,1.6798845]
[1752436205469,0.1686705,119240.0,119230.0,2.01221853]
[1752436206263,0.001,119240.0,119230.0,2.01221853]
[1752436208369,0.001,119240.0,119230.0,2.30651853]
[1752436212481,0.5703273,119280.0,119270.0,0.1676143]
[1752436212680,0.6122322,119280.0,119270.0,1.65094833]
[1752436213180,0.6122322,119280.0,119270.0,1.3186143]
[1752436213778,0.2095273,119280.0,119270.0,1.6794143]
[1752436213979,0.213514,119290.0,119280.0,0.1676143]
[1752436214181,0.213514,119290.0,119280.0,0.49694833]
[1752436214381,0.004,119290.0,119280.0,0.49694833]
[1752436214576,0.004,119290.0,119280.0,0.85774833]
[1752436215179,0.004,119290.0,119280.0,0.92217474]
[1752436216376,0.006,119290.0,119280.0,0.92217474]
[1752436216878,0.006,119290.0,119280.0,0.93098368]
[1752436217482,0.006,119290.0,119280.0,2.08174368]
[1752436217483,0.1726002,119290.0,119280.0,2.08174368]
[1752436218882,0.005,119290.0,119280.0,2.08174368]
[1752436219682,0.1726002,119290.0,119280.0,2.08174368]
[1752436219884,0.1726002,119290.0,119280.0,2.37604368]
[1752436220984,0.1726002,119290.0,119280.0,1.51148641]
[1752436220985,0.50493423,119290.0,119280.0,1.51148641]
[1752436221183,0.50493423,119290.0,119280.0,1.38480071]
[1752436221392,0.1726002,119290.0,119280.0,1.38480071]
[1752436222186,0.1726002,119290.0,119280.0,1.21718641]
[1752436222688,0.1676143,119280.0,119270.0,1.7800387]
[1752436222985,0.1676143,119280.0,119270.0,1.7798387]
[1752436224280,0.1676143,119280.0,119270.0,1.84939722]
[1752436224487,0.1676143,119280.0,119270.0,1.85039722]
[1752436224689,0.1676143,119280.0,119270.0,2.18273125]
[1752436228387,0.1676143,119280.0,119270.0,1.85039722]
[1752436230186,0.0459009,119290.0,119280.0,0.1676143]
[1752436230385,0.004,119290.0,119280.0,0.86074833]
[1752436234493,0.004,119290.0,119280.0,0.86174833]
[1752436234897,0.004,119290.0,119280.0,0.86274833]
[1752436237105,0.1677581,119320.0,119310.0,0.1675721]
[1752436237299,0.1677581,119320.0,119310.0,1.69582476]
[1752436238203,0.1687581,119320.0,119310.0,1.69582476]
[1752436238400,0.1687581,119320.0,119310.0,1.69682476]
[1752436239012,1.27951613,119320.0,119310.0,1e-07]
[1752436239204,1.27951613,119320.0,119290.0,0.0224582]
[1752436239205,0.1675862,119300.0,119290.0,1e-07]
[1752436239405,0.1676002,119290.0,119280.0,0.00167666]
[1752436239707,2.01081423,119290.0,119280.0,0.00167666]
[1752436239906,2.17847823,119290.0,119280.0,0.00167666]
[1752436240113,2.17847823,119290.0,119280.0,6e-08]
[1752436241108,2.17947823,119290.0,119280.0,6e-08]
[1752436242612,2.17951823,119290.0,119280.0,6e-08]
[1752436243110,2.23914676,119290.0,119280.0,6e-08]
[1752436245610,2.07148276,119290.0,119280.0,6e-08]
[1752436247203,2.01185423,119290.0,119280.0,6e-08]
[1752436253508,0.86177423,119290.0,119280.0,6e-08]
[1752436253709,0.1686402,119290.0,119280.0,0.16761436]
[1752436253912,0.7437202,119290.0,119280.0,0.86074839]
[1752436254210,0.7437202,119290.0,119280.0,0.16761436]
[1752436254614,0.1686402,119290.0,119280.0,0.16761436]
[1752436254818,0.7437202,119290.0,119280.0,0.16761436]
[1752436258513,0.1686402,119290.0,119280.0,0.16761436]
[1752436258817,0.7437202,119290.0,119280.0,0.16761436]
[1752436259118,0.1686402,119290.0,119280.0,0.16761436]
[1752436259312,0.7437202,119290.0,119280.0,0.16761436]
[1752436259811,0.7437202,119290.0,119280.0,6e-08]
[1752436261015,1.43685423,119290.0,119280.0,6e-08]
[1752436264522,0.16769168,119280.0,119270.0,0.0002]
[1752436264725,0.1676283,119270.0,119260.0,0.612463]
[1752436264922,0.7426683,119270.0,119260.0,0.251463]
[1752436265123,0.1676283,119270.0,119260.0,0.94459703]
[1752436267328,0.1676283,119270.0,119260.0,0.94659703]
[1752436268218,0.1676283,119270.0,119260.0,0.94859703]
[1752436270526,0.1676283,119270.0,119260.0,0.97871465]
[1752436277034,0.1676283,119270.0,119260.0,0.92988572]
[1752436277330,0.1676283,119270.0,119260.0,0.8997681]
[1752436277629,0.1676283,119270.0,119260.0,0.92988572]
[1752436279129,0.4511334,119270.0,119260.0,0.56255962]
[1752436279437,0.4511334,119270.0,119260.0,0.171642]
[1752436279631,0.1676283,119270.0,119260.0,0.171642]
[1752436281928,0.1676283,119270.0,119260.0,0.532442]
[1752436282134,0.1676283,119270.0,119260.0,0.171642]
[1752436283229,0.1676283,119270.0,119260.0,0.4551471]
[1752436283434,0.1676283,119270.0,119260.0,0.171642]
[1752436284734,0.1676283,119270.0,119260.0,0.532442]
[1752436285335,0.1676283,119270.0,119260.0,0.171642]
[1752436287641,0.1676283,119270.0,119260.0,0.532442]
[1752436287836,0.1676283,119270.0,119260.0,0.171642]
[1752436288242,0.1676283,119270.0,119260.0,0.532442]
[1752436290648,0.1676283,119270.0,119260.0,0.171642]
[1752436291249,0.1676283,119270.0,119260.0,0.4551471]
[1752436297354,0.1676283,119270.0,119260.0,0.8159471]
[1752436297855,0.1676283,119270.0,119260.0,0.4551471]
[1752436299157,0.1676283,119270.0,119260.0,0.47771918]
[1752436300057,0.1676283,119270.0,119260.0,0.47771983]
[1752436302356,0.1676283,119270.0,119260.0,0.83851983]
[1752436304965,0.1676283,119270.0,119260.0,0.86863745]
[1752436305166,0.1676283,119270.0,119260.0,0.83851983]
[1752436305367,0.1676283,119270.0,119260.0,0.86863745]
[1752436306572,0.1676283,119270.0,119260.0,0.58513235]
[1752436306869,0.1676283,119270.0,119260.0,0.86863745]
[1752436309576,0.20960258,119280.0,119270.0,0.1676283]
[1752436309871,0.20960258,119280.0,119270.0,1.43947088]
[1752436310564,0.20960258,119280.0,119270.0,1.41035326]
[1752436311164,0.20960258,119280.0,119270.0,1.41135326]
[1752436314472,0.20960258,119280.0,119270.0,0.83651326]
[1752436314668,0.20960258,119280.0,119270.0,1.41131326]
[1752436314868,0.49310768,119280.0,119270.0,0.38537986]
[1752436315069,0.49310768,119280.0,119270.0,0.02457986]
[1752436315564,0.20960258,119280.0,119270.0,0.02457986]
[1752436315767,0.49310768,119280.0,119270.0,0.02457986]
[1752436315966,0.49310768,119280.0,119270.0,0.002]
[1752436320071,1.42870768,119280.0,119270.0,1e-07]
[1752436320577,2.12989278,119280.0,119270.0,1e-07]
[1752436320775,0.1676283,119270.0,119260.0,1e-07]
[1752436320976,0.8119334,119270.0,119260.0,1e-07]
[1752436321574,0.9796294,119270.0,119260.0,1e-07]
[1752436321775,0.9796294,119270.0,119260.0,0.0010001]
[1752436321977,0.9796294,119270.0,119260.0,1e-07]
[1752436322980,1.03925793,119270.0,119260.0,1e-07]
[1752436323476,1.28925793,119270.0,119260.0,1e-07]
[1752436324976,1.29025793,119270.0,119260.0,1e-07]
[1752436325479,1.2306294,119270.0,119260.0,1e-07]
[1752436325678,0.1676564,119250.0,119240.0,0.00360602]
[1752436325977,1.3867615,119250.0,119240.0,0.00360602]
[1752436327279,1.3867615,119250.0,119240.0,0.00760602]
[1752436329078,1.0259615,119250.0,119240.0,0.00760602]
[1752436329278,1.3867615,119250.0,119240.0,0.00760602]
[1752436329676,1.39519296,119250.0,119240.0,0.00760602]
[1752436329872,1.3867615,119250.0,119240.0,0.00760602]
[1752436331382,1.3867615,119250.0,119240.0,2e-08]
[1752436331682,1.3887615,119250.0,119240.0,2e-08]
[1752436331883,1.3974728,119250.0,119240.0,2e-08]
[1752436332581,1.3887615,119250.0,119240.0,2e-08]
[1752436335887,0.82236251,119250.0,119240.0,2e-08]
[1752436336082,1.39724251,119250.0,119240.0,2e-08]
[1752436341488,1.3888015,119250.0,119240.0,2e-08]
[1752436342592,1.39731037,119250.0,119240.0,2e-08]
[1752436342794,1.03651037,119250.0,119240.0,2e-08]
[1752436343495,1.39731037,119250.0,119240.0,2e-08]
[1752436343690,1.03651037,119250.0,119240.0,2e-08]
[1752436345094,1.39731037,119250.0,119240.0,2e-08]
[1752436346700,1.03651037,119250.0,119240.0,2e-08]
[1752436348199,1.39731037,119250.0,119240.0,2e-08]
[1752436348400,1.03651037,119250.0,119240.0,2e-08]
[1752436348896,1.39731037,119250.0,119240.0,2e-08]
[1752436353007,1.39735037,119250.0,119240.0,2e-08]
[1752436354908,1.53089702,119250.0,119240.0,2e-08]
[1752436355410,1.31811671,119250.0,119240.0,2e-08]
[1752436358609,0.95731671,119250.0,119240.0,2e-08]
[1752436358814,1.31811671,119250.0,119240.0,2e-08]
[1752436359515,0.95731671,119250.0,119240.0,2e-08]
[1752436359713,1.31811671,119250.0,119240.0,2e-08]
[1752436359917,0.95731671,119250.0,119240.0,2e-08]
[1752436360314,1.31811671,119250.0,119240.0,2e-08]
[1752436361518,0.95731671,119250.0,119240.0,2e-08]
[1752436361719,0.38247671,119250.0,119240.0,2e-08]
[1752436361918,0.95723671,119250.0,119240.0,2e-08]
[1752436362522,1.31803671,119250.0,119240.0,2e-08]
[1752436363620,1.53081702,119250.0,119240.0,2e-08]
[1752436363822,0.74327671,119250.0,119240.0,0.21278033]
[1752436364016,1.31799671,119250.0,119240.0,0.21278033]
[1752436364819,0.95719671,119250.0,119240.0,0.21278033]
[1752436365019,1.31799671,119250.0,119240.0,0.21278033]
[1752436366824,0.95719671,119250.0,119240.0,0.21278033]
[1752436367321,1.31799671,119250.0,119240.0,0.21278033]
[1752436368120,0.95719671,119250.0,119240.0,0.21278033]
[1752436368327,1.31799671,119250.0,119240.0,0.21278033]
[1752436368627,1.1052164,119250.0,119240.0,0.21278033]
[1752436368825,1.31799671,119250.0,119240.0,0.21278033]
[1752436369825,0.95719671,119250.0,119240.0,0.21278033]
[1752436370125,1.31799671,119250.0,119240.0,0.21278033]
[1752436370827,0.95719671,119250.0,119240.0,0.21278033]
[1752436372826,0.95715671,119250.0,119240.0,0.21278033]
[1752436373926,0.1696964,119250.0,119240.0,0.95403114]
[1752436380730,0.2717106,119240.0,119230.0,0.01763782]
[1752436380927,1.2070706,119240.0,119230.0,0.01743782]
[1752436381127,1.63263122,119240.0,119230.0,0.01743782]
[1752436381526,1.64917352,119240.0,119230.0,0.01743782]
[1752436381930,1.64917352,119240.0,119230.0,0.18512252]
[1752436382232,1.64917352,119240.0,119230.0,0.01743782]
[1752436383026,1.50733603,119240.0,119230.0,0.01743782]
[1752436383227,1.50733603,119240.0,119230.0,0.18512252]
[1752436383734,1.50733603,119240.0,119230.0,0.01743782]
[1752436384136,1.50733603,119240.0,119230.0,0.18512252]
[1752436384537,1.50733603,119240.0,119230.0,0.01743782]
[1752436394046,1.50745631,119240.0,119230.0,0.01743782]
[1752436395048,1.50745631,119240.0,119230.0,0.02442782]
[1752436395347,1.19891318,119240.0,119230.0,0.19227252]
[1752436395544,1.22369318,119240.0,119230.0,0.01743782]
[1752436395748,1.50741631,119240.0,119230.0,0.01743782]
[1752436396448,1.79113944,119240.0,119230.0,0.01743782]
[1752436396849,0.2717247,119230.0,119220.0,0.0002]
[1752436397044,0.2717387,119220.0,119210.0,0.01762847]
[1752436397245,1.50740441,119220.0,119210.0,0.01742847]
[1752436397546,0.2717528,119210.0,119200.0,0.00380723]
[1752436397748,0.2717528,119210.0,119200.0,0.00360723]
[1752436397749,0.93293851,119210.0,119200.0,0.00360723]
[1752436399149,0.93293851,119210.0,119200.0,0.01259723]
[1752436399651,0.93293851,119210.0,119200.0,0.00760723]
[1752436399851,0.83811538,119210.0,119200.0,0.82700726]
[1752436400650,0.8462328,119210.0,119200.0,0.82700726]
[1752436401053,0.86288527,119210.0,119200.0,0.82700726]
[1752436401250,0.28840527,119210.0,119200.0,0.82001726]
[1752436402951,0.28840527,119210.0,119200.0,0.82700726]
[1752436403449,0.28840527,119210.0,119200.0,0.82001726]
[1752436404947,0.28840527,119210.0,119200.0,0.00776723]
[1752436405452,0.5721284,119210.0,119200.0,0.00760723]
[1752436405650,0.9329284,119210.0,119200.0,0.00760723]
[1752436411555,0.9081484,119210.0,119200.0,0.01459723]
[1752436411952,0.9317184,119210.0,119200.0,0.01459723]
[1752436412155,0.9317184,119210.0,119200.0,0.00760723]
[1752436414356,0.5709184,119210.0,119200.0,0.00760723]
[1752436414558,0.9317184,119210.0,119200.0,0.00760723]
[1752436415859,0.86163527,119210.0,119200.0,0.45921716]
[1752436416157,0.86163527,119210.0,119200.0,0.46620716]
[1752436416360,1.22243527,119210.0,119200.0,0.46620716]
[1752436416554,1.22243527,119210.0,119200.0,0.45921716]
[1752436416951,1.19886527,119210.0,119200.0,0.29149036]
[1752436417157,0.26362527,119210.0,119200.0,0.84482893]
[1752436417760,0.28719527,119210.0,119200.0,0.47703893]
[1752436419364,0.28719527,119210.0,119200.0,0.30931213]
[1752436419663,0.64799527,119210.0,119200.0,0.30931213]
[1752436420160,0.64799527,119210.0,119200.0,0.025589]
[1752436421162,0.64799527,119210.0,119200.0,0.032579]
[1752436421662,0.64799527,119210.0,119200.0,0.025589]
[1752436421965,0.9317184,119210.0,119200.0,0.025429]
[1752436425168,0.5709184,119210.0,119200.0,0.025429]
[1752436425372,0.9317184,119210.0,119200.0,0.025429]
[1752436428269,0.64799527,119210.0,119200.0,0.025429]
[1752436429077,0.64799527,119210.0,119200.0,0.032419]
[1752436429772,0.64799527,119210.0,119200.0,0.025429]
[1752436432774,0.9317184,119210.0,119200.0,0.025429]
[1752436434967,0.64799527,119210.0,119200.0,0.025429]
[1752436435675,0.28719527,119210.0,119200.0,0.025429]
[1752436436175,0.64799527,119210.0,119200.0,0.025429]
[1752436440479,0.28719527,119210.0,119200.0,0.025429]
[1752436440669,0.64799527,119210.0,119200.0,0.025429]
[1752436441580,0.28719527,119210.0,119200.0,0.025429]
[1752436442782,0.64799527,119210.0,119200.0,0.025429]
[1752436445081,0.9317184,119210.0,119200.0,0.025429]
[1752436445283,0.5709184,119210.0,119200.0,0.1931558]
[1752436445778,0.5709184,119210.0,119200.0,0.025429]
[1752436447982,0.28719527,119210.0,119200.0,0.025429]
[1752436453181,0.64799527,119210.0,119200.0,0.025429]
[1752436454187,0.9317184,119210.0,119200.0,0.025429]
[1752436454588,0.5709184,119210.0,119200.0,0.025429]
[1752436455088,0.93201631,119210.0,119200.0,0.025429]
[1752436459581,0.64829318,119210.0,119200.0,0.025429]
[1752436460986,0.86117606,119210.0,119200.0,0.23831188]
[1752436463188,0.50037606,119210.0,119200.0,0.23831188]
[1752436463492,0.86117606,119210.0,119200.0,0.23831188]
[1752436464289,0.86117606,119210.0,119200.0,0.025429]
[1752436464791,0.1677268,119200.0,119190.0,0.00868154]
[1752436465089,0.2692309,119190.0,119180.0,0.44775147]
[1752436465295,0.49906416,119190.0,119180.0,0.38063718]
[1752436466296,0.49906416,119190.0,119180.0,0.4467459]
[1752436467094,0.28618128,119190.0,119180.0,0.23386302]
[1752436467692,0.28618128,119190.0,119180.0,0.26555302]
[1752436467895,0.28618128,119190.0,119180.0,0.55902199]
[1752436468491,0.28618128,119190.0,119180.0,0.91982199]
[1752436470496,0.28618128,119190.0,119180.0,0.55902199]
[1752436471997,0.28618128,119190.0,119180.0,0.91982199]
[1752436472197,0.28618128,119190.0,119180.0,0.55902199]
[1752436473697,0.28618128,119190.0,119180.0,0.91982199]
[1752436475999,0.2692309,119190.0,119180.0,0.91982199]
[1752436476199,0.28616075,119190.0,119180.0,0.91982199]
[1752436482306,0.28616075,119190.0,119180.0,1.90094769]
[1752436482500,0.57007504,119190.0,119180.0,0.40204468]
[1752436482704,0.57007504,119190.0,119180.0,0.3618]
[1752436482897,0.57007504,119190.0,119180.0,0.529555]
[1752436483098,0.57011672,119190.0,119180.0,0.3618]
[1752436483402,0.28620243,119190.0,119180.0,0.001]
[1752436484097,0.28620243,119190.0,119180.0,0.168755]